bitfinex/quotes_ETHUSD_20240722
["timestamp","ask_amount","ask_price","bid_price","bid_amount"]
[1721669340004,0.1502747,3468.4,3468.3,12.41211618]
[1721669340215,0.1502747,3468.4,3468.3,13.41458215]
[1721669340378,0.1502747,3468.4,3468.3,14.44958215]
[1721669340705,0.1502747,3468.4,3468.3,14.44959673]
[1721669341034,0.1502747,3468.4,3468.3,14.44959213]
[1721669341500,0.1502747,3468.4,3468.3,13.44711618]
[1721669341823,0.1502747,3468.4,3468.3,14.44958303]
[1721669342315,0.1502747,3468.4,3468.3,13.44711618]
[1721669342524,0.1502747,3468.4,3468.3,14.4495964]
[1721669343819,0.1502747,3468.4,3468.3,13.44711618]
[1721669345881,0.1502747,3468.4,3468.3,14.44963186]
[1721669346077,0.1502747,3468.4,3468.3,13.44711618]
[1721669346679,0.1502747,3468.4,3468.3,14.44960516]
[1721669346879,0.1502747,3468.4,3468.3,13.44711618]
[1721669348623,0.1502747,3468.4,3468.3,7.21076618]
[1721669348832,0.1502747,3468.4,3467.8,0.6035577]
[1721669348833,2.8833,3468.3,3467.8,0.6035577]
[1721669348983,2.88347,3468.1,3467.5,10.2839]
[1721669349331,2.88325,3468.3,3467.7,2.88374]
[1721669349512,2.4884747,3468.4,3467.8,2.88361]
[1721669349893,2.4884747,3468.4,3467.8,1.035]
[1721669350200,0.1502747,3468.4,3468.3,2.88325]
[1721669350402,0.1502747,3468.4,3467.6,2.475]
[1721669350403,0.1502747,3468.4,3468.0,1.035]
[1721669350709,0.1502747,3468.4,3468.2,2.88329]
[1721669354704,0.1502747,3468.4,3468.1,2.88336]
[1721669354926,0.1502747,3468.4,3468.2,2.88333]
[1721669355419,0.1502747,3468.4,3467.6,6.39383]
[1721669355420,0.1502747,3468.4,3468.1,2.88341]
[1721669355733,0.1502747,3468.4,3467.9,2.88353]
[1721669356423,0.1502747,3468.4,3468.0,2.88349]
[1721669356927,0.1502747,3468.4,3468.1,2.88341]
[1721669357851,0.1502747,3468.4,3468.0,2.8835]
[1721669358757,0.1502747,3468.4,3468.0,2.88345]
[1721669359450,0.1502747,3468.4,3468.2,2.88333]
[1721669360444,0.1502747,3468.4,3468.1,2.88341]
[1721669360629,2.88347,3468.1,3467.4,2.88399]
[1721669360829,1.035,3468.2,3467.7,2.88369]
[1721669361030,2.3852,3468.3,3467.9,2.88354]
[1721669361232,2.3852,3468.3,3468.0,2.8835]
[1721669361450,1.1852747,3468.4,3468.1,2.88341]
[1721669361451,0.1502747,3468.4,3468.1,2.88341]
[1721669361751,0.1502747,3468.4,3468.2,2.88329]
[1721669362048,0.1502747,3468.4,3468.2,2.88328]
[1721669362216,0.1502747,3468.4,3468.1,2.88342]
[1721669362639,0.1502747,3468.4,3468.2,2.88333]
[1721669362838,0.1502747,3468.4,3468.1,2.88341]
[1721669363038,0.1502747,3468.4,3468.0,2.8835]
[1721669365276,0.1502747,3468.4,3467.9,2.88354]
[1721669365460,3.0334847,3468.4,3467.9,2.88354]
[1721669365637,3.97470317,3468.4,3467.9,2.88354]
[1721669365938,2.88334,3468.2,3467.7,2.88375]
[1721669366136,2.12649317,3468.4,3467.6,2.88378]
[1721669366137,2.12649317,3468.4,3467.8,2.88364]
[1721669366573,2.88327,3468.3,3467.8,2.88364]
[1721669366750,2.12649317,3468.4,3467.4,2.3423]
[1721669366751,3.0334847,3468.4,3467.4,2.3423]
[1721669366935,3.0334847,3468.4,3467.9,2.88354]
[1721669367339,3.0334847,3468.4,3467.9,2.88353]
[1721669367640,0.1502747,3468.4,3467.9,2.88353]
[1721669367938,3.0334447,3468.4,3467.9,2.88355]
[1721669369068,3.0334447,3468.4,3467.9,5.76708]
[1721669369767,3.0334447,3468.4,3467.9,2.88353]
[1721669370074,0.1502747,3468.4,3468.0,2.88349]
[1721669371590,3.0334447,3468.4,3468.0,2.88349]
[1721669372016,3.0334447,3468.4,3467.9,2.88358]
[1721669373207,0.1502747,3468.4,3468.0,2.88345]
[1721669373686,0.1502747,3468.4,3468.1,2.8834]
[1721669373892,0.1502747,3468.4,3468.3,2.88325]
[1721669374092,0.1502747,3468.4,3468.3,5.7665]
[1721669375086,0.1502747,3468.4,3468.3,2.88325]
[1721669377327,0.1502747,3468.4,3468.1,5.886823]
[1721669377532,0.1502747,3468.4,3468.3,2.88325]
[1721669380290,0.1502747,3468.4,3468.3,3.7602493]
[1721669382793,0.1502747,3468.4,3468.3,2.88325]
[1721669385421,0.1502747,3468.4,3468.1,5.886823]
[1721669385834,0.1502747,3468.4,3468.2,2.88329]
[1721669386427,0.1502747,3468.4,3468.0,5.76693]
[1721669386609,0.1502747,3468.4,3468.1,2.88341]
[1721669386933,0.1502747,3468.4,3468.1,0.805304]
[1721669387136,0.1502747,3468.4,3468.0,2.8835]
[1721669388314,0.1502747,3468.4,3468.0,2.88345]
[1721669389334,0.1502747,3468.4,3467.8,2.8836]
[1721669389335,2.88326,3468.3,3467.8,2.8836]
[1721669389519,2.88338,3468.2,3467.7,2.88375]
[1721669389723,2.88329,3468.3,3467.7,2.8837]
[1721669390337,2.88338,3468.2,3467.7,2.8837]
[1721669390663,3.91854,3468.0,3467.5,2.88387]
[1721669390865,3.91854,3468.0,3467.4,3.0]
[1721669390866,2.88362,3467.9,3467.4,3.0]
[1721669391073,2.88371,3467.8,3467.0,2.3387]
[1721669391366,2.88371,3467.8,3467.2,2.88413]
[1721669391367,2.8838,3467.7,3467.2,2.88413]
[1721669391535,2.88367,3467.8,3467.3,2.88408]
[1721669393275,2.88367,3467.8,3467.3,2.88403]
[1721669394025,2.88376,3467.7,3467.2,2.88414]
[1721669394779,2.88392,3467.5,3466.8,5.88447]
[1721669394984,3.91884,3467.6,3467.0,2.88425]
[1721669396139,2.884,3467.4,3466.9,2.88441]
[1721669396484,2.884,3467.4,3466.8,3.0]
[1721669396485,2.884,3467.4,3466.8,5.8845]
[1721669397148,1.035,3467.4,3466.7,2.4313]
[1721669397350,2.88421,3467.2,3466.7,2.88454]
[1721669397544,2.88421,3467.2,3466.6,2.88462]
[1721669397545,2.88425,3467.1,3466.6,2.88462]
[1721669398078,2.88421,3467.2,3466.6,2.88461]
[1721669398243,2.8843,3467.1,3466.6,2.88465]
[1721669399771,2.8843,3467.1,3466.4,5.22455]
[1721669399928,2.8843,3467.1,3466.5,5.8847]
[1721669400357,2.8843,3467.1,3466.1,0.45219327]
[1721669400358,2.88472,3466.6,3466.1,2.70709327]
[1721669400558,3.173232,3466.5,3465.8,5.14015]
[1721669400757,2.88463,3466.7,3466.1,2.88504]
[1721669401401,6.23214,3466.8,3466.2,2.88495]
[1721669401402,6.2321,3466.8,3466.2,2.88495]
[1721669401573,2.45,3467.2,3466.2,2.3262]
[1721669401767,2.88429,3467.1,3466.2,2.3262]
[1721669401998,3.485,3467.2,3466.4,2.88479]
[1721669402362,3.485,3467.2,3466.2,2.95083]
[1721669402363,2.88428,3467.1,3466.6,2.8846]
[1721669403665,2.88443,3466.9,3466.3,2.88489]
[1721669404488,1.035,3467.0,3466.4,2.88483]
[1721669404489,3.91934,3467.0,3466.4,2.88483]
[1721669404798,2.88454,3466.8,3466.2,2.3262]
[1721669404962,2.88454,3466.8,3466.2,5.21114]
[1721669405160,2.88454,3466.8,3466.2,2.88494]
[1721669405361,2.88459,3466.7,3466.2,2.88494]
[1721669405978,2.88459,3466.7,3465.9,2.4743]
[1721669406313,2.88459,3466.7,3465.6,0.45228626]
[1721669406314,1.035,3466.2,3465.6,2.3996]
[1721669406518,2.88487,3466.4,3465.7,2.8854]
[1721669406676,3.91996,3466.3,3465.7,2.8854]
[1721669407007,3.91996,3466.3,3465.7,2.88537]
[1721669407191,2.88501,3466.2,3465.7,2.88537]
[1721669407779,2.88519,3466.0,3465.6,2.3996]
[1721669407977,2.88501,3466.2,3465.6,2.3996]
[1721669408181,2.88514,3466.1,3465.6,5.28509]
[1721669410600,2.88529,3465.9,3465.3,5.1578]
[1721669410802,2.88529,3465.9,3465.4,2.88565]
[1721669411569,6.80526,3466.1,3465.4,2.88565]
[1721669411766,6.80526,3466.1,3465.4,5.77123]
[1721669411767,4.8726061,3466.1,3465.4,5.77123]
[1721669412069,2.88521,3466.0,3465.4,2.88558]
[1721669413313,2.88525,3465.9,3465.4,2.88558]
[1721669413470,4.8726061,3466.1,3465.4,5.77118]
[1721669413667,0.9525061,3466.1,3465.6,2.8855]
[1721669413870,2.8848,3466.5,3465.6,2.8855]
[1721669414131,2.8848,3466.5,3465.8,2.88529]
[1721669414297,2.48888351,3468.8,3465.6,1.035]
[1721669414298,2.4597,3467.1,3466.0,2.3869]
[1721669414497,2.88419,3467.2,3466.3,2.88486]
[1721669414815,2.8844,3467.0,3466.4,2.88482]
[1721669414970,2.88448,3466.9,3466.3,2.88491]
[1721669415290,2.88456,3466.8,3466.1,0.23869]
[1721669415504,2.88471,3466.6,3466.1,3.0]
[1721669415719,2.88471,3466.6,3466.0,5.27202]
[1721669416023,2.88476,3466.5,3466.1,3.0]
[1721669416241,2.88476,3466.5,3466.0,5.3869]
[1721669418719,2.88476,3466.5,3466.0,2.3869]
[1721669418923,3.706304,3466.5,3466.0,2.3869]
[1721669420845,2.88462,3466.7,3466.1,5.77009]
[1721669420993,5.30574,3467.3,3466.5,2.88471]
[1721669421188,10.24384,3467.6,3466.7,2.88453]
[1721669421189,2.88397,3467.5,3466.7,2.88453]
[1721669421435,2.4216,3467.7,3466.6,2.4097]
[1721669421436,2.88379,3467.7,3466.6,2.4097]
[1721669421741,2.88347,3468.1,3466.8,2.88447]
[1721669421887,2.88355,3468.0,3467.4,2.88397]
[1721669422090,0.1502747,3468.4,3467.6,2.88383]
[1721669422412,0.1502747,3468.4,3467.3,2.88403]
[1721669422413,2.88334,3468.2,3467.3,2.88403]
[1721669422625,2.88346,3468.1,3467.5,2.88385]
[1721669422827,3.47516747,3468.1,3467.5,2.88385]
[1721669422992,3.47516747,3468.1,3467.5,2.88386]
[1721669423407,2.88356,3468.0,3467.3,2.88403]
[1721669423600,2.88365,3467.9,3466.8,2.88449]
[1721669423854,2.88365,3467.9,3467.0,2.88432]
[1721669423997,5.76731,3467.9,3467.3,2.88406]
[1721669424195,2.88388,3467.6,3467.0,2.88429]
[1721669424431,2.88379,3467.7,3466.9,3.0]
[1721669424636,2.88397,3467.5,3466.6,2.88461]
[1721669424938,2.8841,3467.3,3466.2,5.4956]
[1721669425095,2.8841,3467.3,3466.8,2.88448]
[1721669425292,0.288397,3467.4,3466.9,2.88441]
[1721669425521,0.288397,3467.4,3467.0,2.88429]
[1721669425727,2.88413,3467.3,3466.7,2.88454]
[1721669425922,0.6056507,3467.3,3466.2,8.38057]
[1721669426224,5.76825,3467.3,3466.7,2.8845]
[1721669426423,2.88432,3467.1,3466.5,2.88472]
[1721669426725,2.88418,3467.2,3466.6,2.8846]
[1721669426726,2.88421,3467.2,3466.6,2.8846]
[1721669427345,2.88435,3467.0,3466.3,2.88487]
[1721669427552,2.88446,3466.9,3466.3,2.88487]
[1721669427747,3.461341,3466.9,3466.3,2.88487]
[1721669428330,2.88455,3466.8,3466.2,2.88499]
[1721669429031,2.88467,3466.6,3466.0,2.8851]
[1721669429223,2.88467,3466.6,3466.1,3.0]
[1721669429465,2.88455,3466.8,3466.2,2.88493]
[1721669429664,0.576881,3466.9,3466.1,3.0]
[1721669429665,2.88459,3466.7,3466.1,3.0]
[1721669429865,2.88459,3466.7,3466.0,2.88509]
[1721669429866,2.88467,3466.6,3466.0,5.77019]
[1721669430077,2.88467,3466.6,3466.1,2.88507]
[1721669430576,0.3461431,3466.7,3466.1,2.88507]
[1721669431070,0.3461431,3466.7,3466.2,2.88498]
[1721669432065,0.3461431,3466.7,3466.1,2.88502]
[1721669432066,2.88467,3466.6,3466.1,2.88502]
[1721669432573,2.88475,3466.5,3465.9,5.77039]
[1721669432725,2.88494,3466.3,3465.7,2.88537]
[1721669432963,2.88497,3466.3,3465.8,2.88531]
[1721669434227,2.4413,3467.2,3465.5,2.445]
[1721669434462,2.88446,3466.9,3466.4,2.88483]
[1721669434656,3.417036,3466.9,3466.4,2.88483]
[1721669435943,3.417036,3466.9,3466.3,2.445]
[1721669435944,2.88452,3466.8,3466.3,2.445]
[1721669436142,2.88452,3466.8,3465.8,2.8853]
[1721669436143,2.88469,3466.6,3466.1,2.88502]
[1721669436746,2.88469,3466.6,3466.1,5.77004]
[1721669436971,2.88452,3466.8,3466.2,2.88499]
[1721669437135,2.88452,3466.8,3466.3,2.88492]
[1721669438178,5.76909,3466.8,3466.3,2.88492]
[1721669438333,2.88452,3466.8,3466.1,2.88505]
[1721669438535,2.88452,3466.8,3466.3,2.88487]
[1721669438848,2.88439,3467.0,3466.3,2.88486]
[1721669439047,2.4834,3467.6,3466.9,2.88436]
[1721669439252,2.88377,3467.7,3467.1,2.8842]
[1721669439443,2.4573,3468.0,3467.1,2.8842]
[1721669439764,2.88388,3467.6,3466.7,2.88453]
[1721669439979,2.88408,3467.4,3466.7,3.701394]
[1721669440135,2.88409,3467.3,3466.8,2.8845]
[1721669440489,2.88384,3467.6,3467.0,2.88428]
[1721669440667,2.88378,3467.7,3467.2,2.88411]
[1721669440882,2.4573,3468.0,3466.7,0.816864]
[1721669440883,2.88384,3467.6,3467.1,2.88425]
[1721669441184,2.88384,3467.6,3466.9,2.88442]
[1721669441185,2.88401,3467.4,3466.9,2.88442]
[1721669442000,2.88384,3467.6,3467.0,2.88432]
[1721669442279,2.88384,3467.6,3466.8,2.88445]
[1721669442280,2.88384,3467.6,3467.1,2.88425]
[1721669442777,2.4573,3468.0,3467.0,2.88433]
[1721669442982,2.88388,3467.6,3467.0,2.88428]
[1721669443129,2.88397,3467.5,3466.9,2.8844]
[1721669443336,5.76796,3467.5,3466.9,2.8844]
[1721669443574,0.534076,3467.9,3466.7,0.816864]
[1721669443575,2.88383,3467.6,3467.0,2.88429]
[1721669443781,2.88392,3467.5,3467.0,2.88429]
[1721669443983,2.88372,3467.8,3467.1,2.88423]
[1721669444153,2.88389,3467.6,3467.1,2.88423]
[1721669446560,2.88393,3467.5,3467.1,2.88423]
[1721669446885,2.88393,3467.5,3467.0,5.16219]
[1721669447263,2.88393,3467.5,3467.0,2.2779]
[1721669447869,2.88396,3467.5,3467.0,2.2779]
[1721669448210,2.8841,3467.3,3467.0,2.2779]
[1721669449198,2.88426,3467.1,3466.7,2.3307]
[1721669450108,2.88418,3467.2,3466.7,2.3307]
[1721669450403,2.88423,3467.2,3466.7,2.3307]
[1721669450605,2.88414,3467.3,3466.7,5.21527]
[1721669450806,2.884,3467.4,3466.7,5.21527]
[1721669450807,2.88418,3467.2,3466.7,5.21527]
[1721669451013,2.88418,3467.2,3466.7,2.3307]
[1721669451014,5.76842,3467.2,3466.7,2.3307]
[1721669451207,2.88432,3467.1,3466.7,2.3307]
[1721669451507,2.88418,3467.2,3466.5,3.0]
[1721669451508,2.88438,3467.0,3466.5,3.0]
[1721669451669,2.88438,3467.0,3466.3,2.634186]
[1721669451865,5.16643,3467.4,3466.3,5.519066]
[1721669452182,2.88438,3467.0,3466.4,2.88477]
[1721669452381,2.88438,3467.0,3466.5,2.88474]
[1721669453478,2.88417,3467.2,3466.6,2.88463]
[1721669453719,2.88417,3467.2,3466.3,2.634186]
[1721669453720,2.88417,3467.2,3466.5,2.88468]
[1721669454487,2.88425,3467.1,3466.6,2.88467]
[1721669454701,5.16646,3467.4,3466.7,2.88457]
[1721669454902,2.88417,3467.2,3466.7,2.88457]
[1721669456307,2.88397,3467.5,3467.0,2.88433]
[1721669456638,2.88404,3467.4,3466.9,2.88437]
[1721669457727,5.76811,3467.4,3466.9,2.88437]
[1721669457936,2.88404,3467.4,3466.9,2.88437]
[1721669458141,2.8841,3467.3,3466.8,2.2753]
[1721669458337,2.8841,3467.3,3466.8,5.15979]
[1721669458497,2.88418,3467.2,3466.8,2.2753]
[1721669458697,2.88408,3467.3,3466.8,2.2753]
[1721669458936,3.172414,3467.4,3466.9,2.88441]
[1721669460096,2.88401,3467.4,3466.9,2.88441]
[1721669460297,2.88389,3467.6,3466.9,2.88441]
[1721669460604,2.88404,3467.4,3466.9,2.88441]
[1721669460808,2.2649,3468.2,3466.9,2.88437]
[1721669461010,4.40963747,3468.1,3467.1,2.88424]
[1721669461226,2.88389,3467.6,3467.1,2.88424]
[1721669461900,5.7678,3467.6,3467.1,2.88424]
[1721669462231,2.88389,3467.6,3467.1,2.88424]
[1721669462442,2.2649,3468.2,3467.4,2.4275]
[1721669462740,2.88351,3468.0,3467.5,2.88391]
[1721669463098,5.76709,3468.0,3467.5,2.88391]
[1721669463299,2.88359,3467.9,3467.4,5.3115]
[1721669463497,2.8835,3468.0,3467.4,5.3115]
[1721669463795,0.1502747,3468.4,3467.4,5.3115]
[1721669464112,2.88355,3468.0,3467.5,2.88389]
[1721669464328,2.88361,3467.9,3467.4,5.31145]
[1721669465801,2.88347,3468.1,3467.5,2.88391]
[1721669465996,2.88347,3468.1,3467.4,5.31145]
[1721669465997,2.88347,3468.1,3467.6,2.88381]
[1721669466409,3.14520747,3468.3,3467.6,2.88378]
[1721669466596,6.02851747,3468.3,3467.7,2.88372]
[1721669466795,3.14520747,3468.3,3467.7,2.88372]
[1721669467038,0.1502747,3468.4,3468.1,2.88336]
[1721669467202,0.1502747,3468.4,3468.1,2.88342]
[1721669468946,2.88326,3468.3,3468.0,2.4054]
[1721669469099,5.76659,3468.3,3467.6,2.88382]
[1721669469303,2.88346,3468.1,3467.5,2.88392]
[1721669469507,2.88346,3468.1,3467.5,2.88386]
[1721669469809,2.88346,3468.1,3467.5,4.454986]
[1721669470214,2.88351,3468.0,3467.5,4.454986]
[1721669470441,2.6159747,3468.4,3467.4,2.4274]
[1721669470685,2.88362,3467.9,3467.4,2.4274]
[1721669470837,2.88371,3467.8,3467.4,2.4274]
[1721669471035,2.88359,3467.9,3467.4,5.31139]
[1721669471431,2.6159747,3468.4,3467.5,2.8839]
[1721669471667,2.88355,3468.0,3467.5,2.8839]
[1721669472182,2.88355,3468.0,3467.5,5.76776]
[1721669472347,2.88355,3468.0,3467.6,2.88383]
[1721669473137,2.88339,3468.2,3467.6,2.88377]
[1721669473367,2.88339,3468.2,3467.7,2.88373]
[1721669473935,2.88339,3468.2,3467.6,2.88383]
[1721669474144,2.88355,3468.0,3467.4,5.31133]
[1721669474357,2.88355,3468.0,3467.5,2.88384]
[1721669475604,2.88334,3468.2,3467.4,2.4274]
[1721669475943,2.88338,3468.2,3467.7,2.88371]
[1721669476279,3.0334947,3468.4,3467.8,2.88362]
[1721669476484,2.88334,3468.2,3467.8,2.88362]
[1721669477297,2.88334,3468.2,3467.7,2.88374]
[1721669478108,0.1502747,3468.4,3468.0,5.31404]
[1721669478993,2.88331,3468.3,3467.1,2.88422]
[1721669479210,2.88334,3468.2,3467.7,5.76737]
[1721669479367,2.88325,3468.3,3467.8,2.88363]
[1721669479691,6.07797817,3468.4,3468.0,2.8835]
[1721669479692,3.0334447,3468.4,3468.0,2.8835]
[1721669479911,3.0334447,3468.4,3467.8,2.88362]
[1721669479912,5.9166947,3468.4,3467.8,2.88362]
[1721669480202,2.88331,3468.3,3467.8,2.88362]
[1721669480501,0.1502747,3468.4,3467.9,0.576731]
[1721669480708,0.1502747,3468.4,3467.8,2.317]
[1721669480999,0.1502747,3468.4,3468.2,2.88329]
[1721669481551,0.1502747,3468.4,3468.3,2.88325]
[1721669482611,0.1502747,3468.4,3468.3,8.0835]
[1721669496706,0.1502747,3468.4,3468.3,5.20025]
[1721669496939,0.1502747,3468.4,3468.3,8.0835]
[1721669497119,0.1502747,3468.4,3468.3,8.89185]
[1721669501283,0.1502747,3468.4,3468.3,6.0086]
[1721669501569,0.1502747,3468.4,3468.3,8.89185]
[1721669508828,0.1502747,3468.4,3468.3,11.7751]
[1721669510739,0.1502747,3468.4,3468.3,8.89185]
[1721669511263,0.1502747,3468.4,3468.3,11.7751]
[1721669512490,0.1502747,3468.4,3468.3,8.89185]
[1721669513244,0.1502747,3468.4,3468.3,3.6916]
[1721669513665,0.1502747,3468.4,3468.3,6.57485]
[1721669514383,0.1502747,3468.4,3468.3,8.95875]
[1721669518669,0.1502747,3468.4,3468.3,0.80835]
[1721669518895,0.1502747,3468.4,3468.2,2.88332]
[1721669519277,0.1502747,3468.4,3468.1,2.88342]
[1721669519474,0.1502747,3468.4,3468.2,3.0]
[1721669520070,0.1502747,3468.4,3468.2,5.8833]
[1721669522310,0.1502747,3468.4,3468.3,2.88325]
[1721669522507,0.1502747,3468.4,3468.3,3.997694]
[1721669522827,0.1502747,3468.4,3468.3,6.880944]
[1721669523171,0.1502747,3468.4,3468.3,3.997694]
[1721669523381,0.1502747,3468.4,3468.3,10.82434551]
[1721669523683,0.1502747,3468.4,3468.3,12.28898624]
[1721669523904,2.3306,3470.6,3468.4,1.61943228]
[1721669524101,2.8812,3470.8,3469.2,14.19654249]
[1721669524271,2.3306,3471.0,3469.3,2.8824]
[1721669524617,7.36,3471.3,3470.6,2.88132]
[1721669524618,2.88077,3471.3,3470.6,2.88132]
[1721669524776,2.88077,3471.3,3470.7,2.88125]
[1721669525183,5.2112,3471.5,3470.7,2.88118]
[1721669525409,2.8809,3471.2,3470.5,2.88141]
[1721669525795,2.88079,3471.3,3470.4,2.88148]
[1721669525968,2.88079,3471.3,3470.3,2.88159]
[1721669525969,2.3306,3471.5,3470.3,2.88159]
[1721669526173,2.3306,3471.5,3470.4,2.88149]
[1721669526174,2.88098,3471.1,3470.4,2.88149]
[1721669526393,2.88098,3471.1,3470.1,0.59460811]
[1721669526597,0.521108,3471.4,3470.1,3.59460811]
[1721669526920,2.88144,3470.5,3470.1,3.0]
[1721669527125,3.005108,3471.4,3469.8,3.0]
[1721669527126,2.88134,3470.6,3469.8,3.0]
[1721669527329,2.88134,3470.6,3469.9,2.88192]
[1721669527477,2.88134,3470.6,3470.0,3.0]
[1721669527818,2.88078,3471.3,3470.0,3.0]
[1721669528000,3.005108,3471.4,3469.4,9.8067]
[1721669528001,2.8811,3470.9,3469.8,2.88194]
[1721669528216,2.88102,3471.0,3470.3,2.88153]
[1721669529582,0.521108,3471.4,3470.2,2.88166]
[1721669529583,2.88115,3470.9,3470.2,2.88166]
[1721669529810,0.521108,3471.4,3470.0,2.88183]
[1721669529991,2.88126,3470.8,3470.1,5.88176]
[1721669530206,2.88076,3471.3,3470.2,2.88159]
[1721669530207,2.88107,3471.0,3470.2,2.88159]
[1721669530427,0.521108,3471.4,3470.1,3.876359]
[1721669530428,3.401848,3471.4,3470.6,2.88129]
[1721669530753,2.88093,3471.1,3470.5,2.88139]
[1721669531096,3.1502747,3471.9,3470.1,3.876359]
[1721669531097,3.1502747,3471.9,3470.6,2.3439]
[1721669531300,2.88057,3471.6,3471.0,2.881]
[1721669531499,3.47169047,3471.6,3470.8,2.88111]
[1721669531802,0.59112047,3471.6,3470.3,7.4]
[1721669531984,2.881,3471.1,3470.4,5.88145]
[1721669532183,2.881,3471.1,3470.5,2.88142]
[1721669532384,2.88076,3471.3,3470.5,2.88142]
[1721669532626,2.4877,3471.5,3470.6,2.88133]
[1721669532627,2.88086,3471.2,3470.6,2.88133]
[1721669533123,2.88075,3471.4,3470.7,2.88125]
[1721669533299,2.88068,3471.4,3470.8,2.88112]
[1721669533630,2.8806,3471.5,3470.7,2.88122]
[1721669533787,2.8806,3471.5,3470.9,2.88102]
[1721669534131,2.8806,3471.5,3470.7,2.88123]
[1721669534132,5.36421,3472.0,3470.7,2.88123]
[1721669534303,5.36421,3472.0,3470.6,0.876275]
[1721669534304,3.66072847,3471.8,3471.0,2.88096]
[1721669534508,2.88052,3471.6,3471.0,2.88096]
[1721669534713,2.88052,3471.6,3471.1,2.88092]
[1721669534929,2.289,3472.1,3471.3,2.88069]
[1721669534930,3.0305547,3471.9,3471.3,2.88069]
[1721669535103,3.0305547,3471.9,3471.0,2.3153]
[1721669535298,5.9108947,3471.9,3471.3,2.88069]
[1721669535502,2.88037,3471.8,3471.3,2.88069]
[1721669535755,2.88037,3471.8,3471.1,2.88085]
[1721669535909,3.0305847,3471.9,3471.3,2.88069]
[1721669536547,2.88035,3471.8,3471.3,2.88069]
[1721669536697,0.1502747,3471.9,3471.6,2.8805]
[1721669536898,0.1502747,3471.9,3471.7,2.88042]
[1721669537100,0.1502747,3471.9,3471.6,2.88046]
[1721669537515,0.1502747,3471.9,3471.7,2.88038]
[1721669537755,0.1502747,3471.9,3471.8,2.88035]
[1721669538100,0.1502747,3471.9,3471.8,5.7607]
[1721669538302,0.1502747,3471.9,3471.8,9.21712]
[1721669538506,0.1502747,3471.9,3471.8,12.21712]
[1721669538952,0.1502747,3471.9,3471.8,9.33677]
[1721669539244,0.1502747,3471.9,3471.8,5.88035]
[1721669539551,0.1502747,3471.9,3471.8,3.0]
[1721669539762,0.1502747,3471.9,3471.4,2.88063]
[1721669540054,2.88047,3471.7,3471.1,2.88093]
[1721669540366,5.76083,3471.8,3471.2,3.0]
[1721669540663,2.88057,3471.6,3471.0,7.4]
[1721669540954,2.88057,3471.6,3471.0,2.88094]
[1721669541260,2.88059,3471.5,3470.7,5.2871]
[1721669541461,2.88081,3471.3,3470.7,2.4059]
[1721669541752,2.88075,3471.4,3470.7,5.2871]
[1721669541962,2.88077,3471.3,3470.8,2.88117]
[1721669542146,2.88069,3471.4,3470.9,2.88108]
[1721669542355,0.1502747,3471.9,3470.8,5.88113]
[1721669542534,2.88069,3471.4,3470.8,5.88113]
[1721669542733,2.38069,3471.4,3470.8,5.88113]
[1721669542936,2.88055,3471.6,3471.0,2.88099]
[1721669543154,2.88059,3471.5,3470.9,2.88104]
[1721669543462,2.88059,3471.5,3470.8,5.88111]
[1721669543828,2.88076,3471.3,3470.8,5.88111]
[1721669544035,2.88059,3471.5,3470.8,5.88111]
[1721669544336,2.88072,3471.4,3470.8,5.88111]
[1721669544750,2.88064,3471.5,3470.8,3.0]
[1721669545072,0.1502747,3471.9,3471.1,2.2947]
[1721669545248,0.1502747,3471.9,3471.5,2.88055]
[1721669545447,0.1502747,3471.9,3471.6,2.8805]
[1721669545662,0.1502747,3471.9,3471.5,2.88057]
[1721669545847,0.1502747,3471.9,3471.2,2.88083]
[1721669546059,2.88047,3471.7,3471.0,2.88095]
[1721669546365,3.0305647,3471.9,3471.0,2.88095]
[1721669546366,2.88056,3471.6,3471.1,3.0]
[1721669546870,2.88068,3471.4,3471.1,3.0]
[1721669547057,2.88068,3471.4,3471.0,3.0]
[1721669547467,2.8806,3471.5,3471.0,3.0]
[1721669547764,2.88056,3471.6,3471.0,5.88093]
[1721669547765,2.88053,3471.6,3471.0,5.88093]
[1721669547977,0.1502747,3471.9,3471.0,5.88093]
[1721669547978,0.1502747,3471.9,3471.0,4.10382092]
[1721669548278,0.1502747,3471.9,3471.6,2.8805]
[1721669548469,0.1502747,3471.9,3471.7,2.88039]
[1721669548670,0.1502747,3471.9,3471.8,5.7607]
[1721669548967,2.87956,3472.8,3472.2,2.88001]
[1721669549125,2.493,3473.2,3472.0,2.8801]
[1721669549466,2.87963,3472.7,3472.1,2.88004]
[1721669550026,2.87963,3472.7,3471.8,3.82525]
[1721669550027,2.87946,3472.9,3472.2,2.88]
[1721669550250,2.87961,3472.7,3472.2,2.88]
[1721669550665,2.87894,3473.5,3472.4,2.87984]
[1721669550963,2.87944,3472.9,3472.4,2.87984]
[1721669551331,2.87939,3473.0,3472.4,2.87978]
[1721669551523,2.87948,3472.9,3472.4,2.87978]
[1721669551755,2.87948,3472.9,3472.2,2.87996]
[1721669552042,2.87948,3472.9,3472.3,2.87989]
[1721669552265,2.87956,3472.8,3472.3,2.87989]
[1721669552474,2.87963,3472.7,3472.2,2.88001]
[1721669552656,2.87953,3472.8,3472.3,2.87993]
[1721669552967,2.87953,3472.8,3472.3,2.87989]
[1721669553137,2.87944,3472.9,3472.3,2.87988]
[1721669553337,2.87944,3472.9,3472.3,2.87987]
[1721669553538,2.87944,3472.9,3472.3,2.87988]
[1721669553758,2.87944,3472.9,3472.4,2.8798]
[1721669554853,2.87944,3472.9,3472.2,2.87996]
[1721669555054,2.87959,3472.8,3472.2,2.88]